Cogmind - Beta 12 @@@ ROGUE MODE // 2023.12.16 @ 20:27:12 Player: Dosh Result: Self-destructed Performance ------------- Evolutions (5) 2500 Regions Visited (12) 2400 Robots Destroyed (271) 1355 Value Destroyed (9924) 9924 Prototype IDs (26) 520 Alien Tech Used (0) 0 Bonus (2810) 2810 TOTAL SCORE: 19509 Bonus ------- High Alert Combat Kills 1718 Follower Combat Kills 955 Aligned with FarCom 300 Friendly Fire -163 Cogmind --------- Core Integrity 451/1000 Matter 245/300 Energy 80/100 System Corruption 25% Temperature Cool (0) Movement Immobile (Siege) Location -5/Factory Parts ------- > --- POWER (2) -------- (None) > --- PROPULSION (4) --- Improved Treads Improved Heavy Siege Treads > --- UTILITY (7) ------ Advanced Heat Sink Huge Storage Unit Core Analyzer System Shield Improved Recalibrator > --- WEAPON (4) ------- Backup Laser III Backup Laser III > --- INVENTORY (25) --- Improved Heavy Treads Carbon-fiber Leg Carbon-fiber Leg Carbon-fiber Leg Carbon-fiber Leg Backup Propulsion I Antigrav System Advanced Heat Sink Advanced Heat Sink Improved Cooling System Matter Compressor (250) Advanced Melee Analysis Suite Improved Weapon Cycler Cloaking Device Improved Shield Generator Advanced Shield Generator Hacking Suite Quantum Rifle Heavy Plasma Cannon Hypervelocity Railgun Peak State ------------ > --- POWER ------------ Light Fission Core Light Antimatter Reactor > --- PROPULSION ------- Heavy Treads Improved Heavy Siege Treads > --- UTILITY ---------- Advanced Heat Sink Huge Storage Unit Core Analyzer Transmission Jammer Improved Weapon Shielding Improved Heavy Armor Plating > --- WEAPON ----------- Backup Laser III Backup Laser III XL Autogun Subcomponent XL Autogun Subcomponent > --- INVENTORY -------- Light Fission Core Improved Heavy Treads Carbon-fiber Leg Carbon-fiber Leg Carbon-fiber Leg Carbon-fiber Leg Backup Propulsion I Antigrav System Advanced Heat Sink Improved Cooling System Matter Compressor Advanced Melee Analysis Suite Phase Shifter Cloaking Device Improved Shield Generator Advanced Shield Generator Hacking Suite Quantum Rifle Heavy Plasma Cannon Hypervelocity Railgun [Rating: 95] Favorites ----------- Power Light Ion Engine Engine Light Ion Engine Power Core Light Fission Core Reactor Antimatter Reactor Propulsion Light Treads Treads Light Treads Leg Aluminum Leg Wheel Armored Huge Wheel Hover Unit Backup Propulsion III Utility Hacking Suite Device Improved Heat Sink Storage Huge Storage Unit Processor Core Analyzer Hackware Hacking Suite Protection Improved Medium Armor Plating Weapon XL Autogun Subcomponent Energy Gun Backup Laser III Energy Cannon Plasma Cannon Ballistic Gun XL Autogun Subcomponent Ballistic Cannon Light Cannon Launcher Mini Grenade Launcher Impact Weapon Powered Hammer Build | -11 -10 -10 -10 -9 -8 -7 -6 -6 -6 -5 -5 -5 ------- Run | Jun Mat Min Exi Min Mat Fac Fac Was Fac Fac Was Fac Slots Evolved 10 | . . . . . 4 2 2 . . 2 . . Power 1 | . . . . . . . . . . 1 . . Propulsion 2 | . . . . . 1 . . . . 1 . . Utility 5 | . . . . . 3 . 2 . . . . . Weapon 2 | . . . . . . 2 . . . . . . Parts Attached 174 | 6 5 10 . 5 18 54 3 9 11 26 2 25 Power 25 | 1 . 2 . . 2 6 . 1 2 3 1 7 Engine 8 | 1 . 2 . . 2 2 . . 1 . . . Core 10 | . . . . . . 4 . . . 3 . 3 Reactor 7 | . . . . . . . . 1 1 . 1 4 Propulsion 36 | 2 . . . 2 3 14 . 1 1 7 . 6 Treads 15 | 2 . . . . . 8 . 1 1 . . 3 Leg 16 | . . . . . 3 4 . . . 6 . 3 Wheel 4 | . . . . 2 . 2 . . . . . . Hover 1 | . . . . . . . . . . 1 . . Flight . | . . . . . . . . . . . . . Utility 50 | 1 2 1 . . 6 13 3 4 4 7 . 9 Device 23 | . . . . . 2 7 . 2 3 4 . 5 Storage 5 | 1 1 . . . . 1 . . 1 1 . . Processor 2 | . . . . . . 2 . . . . . . Hackware 4 | . . . . . . . 3 . . . . 1 Protection 16 | . 1 1 . . 4 3 . 2 . 2 . 3 Artifact . | . . . . . . . . . . . . . Weapon 63 | 2 3 7 . 3 7 21 . 3 4 9 1 3 Energy Gun 8 | 1 1 . . . 3 1 . . . . . 2 Energy Cannon 6 | . . . . . . 3 . . 2 1 . . Ballistic Gun 20 | 1 . 3 . 2 3 3 . 1 . 6 1 . Ballistic Cannon 10 | . 1 . . . . 6 . . 1 1 . 1 Launcher 17 | . 1 4 . 1 1 6 . 2 1 1 . . Special Weapon . | . . . . . . . . . . . . . Impact Weapon 2 | . . . . . . 2 . . . . . . Slashing Weapon . | . . . . . . . . . . . . . Piercing Weapon . | . . . . . . . . . . . . . Special Melee Weapon . | . . . . . . . . . . . . . Unidentified Prototypes 3 | . . . . . 2 . . . . 1 . . Parts Lost 65 | . . 2 . 1 10 14 . 5 5 9 . 19 Power 14 | . . 1 . . 3 2 . 1 1 1 . 5 Propulsion 14 | . . . . 1 2 4 . 2 . 2 . 3 Utility 20 | . . 1 . . 4 4 . . 3 2 . 6 Weapon 17 | . . . . . 1 4 . 2 1 4 . 5 Highest Loss Streak 6 | . . 2 . 1 3 6 . 5 3 6 . 5 To Critical Strikes . | . . . . . . . . . . . . . Average Slot Usage (%) 86 | . 92 99 100 93 75 86 96 73 84 74 98 83 Engine 4 | . 14 13 14 14 4 3 6 1 . 1 . . Core 1 | . . . . . . 2 . . . 5 7 3 Reactor 1 | . . . . . . . . 3 5 . 2 4 Treads 11 | . 28 28 28 9 . 9 20 7 8 2 . 6 Leg 5 | . . . . . 19 2 . . . 12 23 7 Wheel 1 | . . . . 12 2 3 . . . . . . Device 7 | . . . . . 8 14 7 4 6 8 5 8 Storage 8 | . 14 14 14 14 9 7 6 1 5 5 5 5 Processor 3 | . . . . . . 4 6 6 6 5 5 5 Hackware 5 | . . . . . . . 15 20 20 17 17 7 Protection 8 | . 6 14 14 14 13 8 6 6 5 1 5 6 Energy Gun 3 | . 7 . . . 5 1 . 8 6 . . 6 Energy Cannon 2 | . . . . . . 6 6 1 5 1 . . Ballistic Gun 6 | . 14 12 . 12 6 1 . . . 7 21 15 Ballistic Cannon 6 | . 6 14 14 14 2 9 13 2 4 1 . . Launcher 2 | . . 1 14 1 3 3 . 2 3 . . . Naked Turns . | . . . . . . . . . . . . . Heaviest Build 139 | 12 52 52 52 52 64 124 120 123 139 127 125 139 Greatest Support 145 | 40 40 40 40 40 30 84 84 84 100 100 70 145 Greatest Overweight (x) 33 | . 1 1 1 5 5 20 1 4 1 33 1 2 Average Overweight (x) 1 | . . 1 1 2 1 2 1 . . 1 1 . Largest Inventory Capacity 25 | 8 20 20 20 20 20 25 25 25 25 25 25 25 Average Capacity 21 | 7 19 20 20 20 20 22 25 9 23 25 25 25 Most Carried 25 | 2 7 14 16 17 20 25 22 19 15 16 25 25 Average Carried 16 | 1 5 12 14 11 17 21 19 7 10 11 20 22 Final Capacity 25 | 8 20 20 20 20 20 25 25 5 25 25 25 25 Final Carried 25 | 2 7 12 16 11 20 22 19 5 13 16 25 21 Class Distribution -------------------- 33% | Mutant 13% | Scavenger-Skirmisher 12% | Hacker-Skirmisher 12% | Skirmisher 5% | Scavenger-Mutant 4% | Tank 4% | Scavenger-Tank 4% | Hacker-Mutant Dominant Class ---------------- Mutant | -10/Materials Mutant | -10/Mines Mutant | -10/Exiles Mutant | -9/Mines Scavenger-Mutant | -8/Materials Skirmisher | -7/Factory Hacker-Skirmisher | -6/Factory Hacker-Mutant | -6/Waste Hacker-Skirmisher | -6/Factory Scavenger-Skirmisher | -5/Factory Scavenger-Skirmisher | -5/Waste Scavenger-Skirmisher | -5/Factory Resources | -11 -10 -10 -10 -9 -8 -7 -6 -6 -6 -5 -5 -5 ----------- Run | Jun Mat Min Exi Min Mat Fac Fac Was Fac Fac Was Fac Matter Collected 9041 | 224 371 323 . 145 647 1923 . 906 544 2338 36 1584 Remotely . | . . . . . . . . . . . . . Salvage Created 11526 | . 246 470 . 148 942 2612 . 635 917 2776 . 2780 Parts 543 | . 20 33 . 12 55 119 . 1 45 117 . 141 Haulers Intercepted 3 | . . . . . 1 1 . . . . . 1 Recyclers Shooed 16 | . 1 1 . . . 1 . . 4 7 . 2 Parts Field Recycled . | . . . . . . . . . . . . . Retrieved Matter . | . . . . . . . . . . . . . Parts Self-Destructed . | . . . . . . . . . . . . . Prevented . | . . . . . . . . . . . . . Kills | -11 -10 -10 -10 -9 -8 -7 -6 -6 -6 -5 -5 -5 ------- Run | Jun Mat Min Exi Min Mat Fac Fac Was Fac Fac Was Fac Combat Hostiles Destroyed 205 | . 7 20 . 5 22 49 . 3 18 27 . 54 Melee 2 | . . . . . . 2 . . . . . . Guns 103 | . 4 7 . . 10 3 . . . 25 . 54 Cannons 58 | . . 4 . 1 3 30 . 2 16 2 . . AOE 38 | . 3 9 . 4 9 10 . 1 2 . . . Classes Destroyed 20 | . 3 3 . 1 4 8 . 1 . . . . Worker 15 | . . . . . 2 6 . . 1 2 . 4 Builder 20 | . . . . . 6 6 . . . 5 . 3 Tunneler 4 | . . 2 . 1 . . . . . 1 . . Hauler 3 | . . . . . 1 1 . . . . . 1 Recycler 22 | . . 2 . 1 2 8 . . . 8 . 1 Mechanic 3 | . . . . . . 2 . . . 1 . . Operator 5 | . . . . 1 2 1 . . . . . 1 Watcher 9 | . 2 . . . . 4 . . . . . 3 Swarmer 36 | . 3 12 . 3 3 . . . 4 . . 11 Grunt 76 | . 4 6 . 2 17 21 . . 8 7 . 11 Brawler 4 | . . . . . . 3 . . . 1 . . Duelist 6 | . . . . . . 3 . . 1 2 . . Protector 1 | . . . . . . 1 . . . . . . Sentry 12 | . . . . . 2 5 . . 1 2 . 2 Specialist 1 | . . . . . . 1 . . . . . . Hunter 19 | . . . . . . 3 . . 3 5 . 8 Programmer 30 | . . . . . . 11 . . 1 10 . 8 Heavy 1 | . . . . . . 1 . . . . . . Compactor 3 | . . . . . . . . 3 . . . . Assembled 16 | . . 2 . . . . . . . . . 14 Surgeon 1 | . . . . . . . . . 1 . . . Best Kill Streak 14 | . 5 4 . 4 10 7 . 2 8 11 . 14 Combat Bots Only 14 | . 5 3 . 3 5 6 . 2 7 6 . 14 Max Kills in Single Turn 4 | . 3 3 . 4 3 3 . 1 4 2 . 3 Gunslinging 1 | . . . . . . . . . . . . 1 Exploded 3 | . 3 2 . 3 2 2 . 1 1 . . . Melee 1 | . . . . . . 1 . . . . . . Uniques/NPCs Destroyed . | . . . . . . . . . . . . . Combat | -11 -10 -10 -10 -9 -8 -7 -6 -6 -6 -5 -5 -5 -------- Run | Jun Mat Min Exi Min Mat Fac Fac Was Fac Fac Was Fac Damage Taken 12991 | . 232 385 . 176 1384 3527 . 194 1787 2099 . 3207 Core 1436 | . 39 46 . 25 231 388 . 88 70 272 . 277 Absorbed by Shields 687 | . . . . . 115 169 . . 122 281 . . Reduced by Siege Mode 77 | . . . . . . . . . . . . 77 Redirected to Shielding 247 | . . . . . 4 28 . . . 111 . 104 Regen/Repaired (Parts) 1024 | . . . . . . 101 . 80 386 . . 457 Core Remaining (%) 67 | 100 . . . 56 58 44 . . 81 . . . Volleys Fired 554 | . 28 32 . 9 75 93 . 27 30 126 . 134 Largest 4 | . 2 2 . 2 2 4 . 4 4 4 . 4 Hottest 271 | . 70 65 . 65 140 211 . 211 271 233 . 120 Shots Fired 1429 | . 56 63 . 18 139 262 . 53 93 237 1 507 Gun 916 | . 51 22 . 7 90 28 . 10 . 202 1 505 Cannon 434 | . 4 32 . 9 31 197 . 35 89 35 . 2 Launcher 79 | . 1 9 . 2 18 37 . 8 4 . . . Special . | . . . . . . . . . . . . . Kinetic 998 | . 32 54 . 16 95 136 . 32 30 223 1 379 Thermal 348 | . 23 . . . 22 89 . 13 59 14 . 128 Explosive 75 | . 1 9 . 2 18 37 . 8 . . . . Electromagnetic 8 | . . . . . 4 . . . 4 . . . Robot Hit Streak 17 | . 11 5 . 4 11 17 . 12 14 13 . 16 Robot Miss Streak 7 | . 4 5 . 3 5 4 . 4 4 6 . 7 Penetration Max 2 | . . . . . . 1 . . . . . 2 Secondary Targets 11 | . 1 . . . . . . . . 2 . 8 Max Gunslinging Chain 1 | . 1 . . . . . . . . 1 . 1 Shots Hit Robots 903 | . 33 31 . 9 98 188 . 43 60 150 . 291 Core Hits 550 | . 17 38 . 11 71 109 . 11 38 100 . 155 Critical Kills 8 | . . 1 . . . 4 . . . . . 3 Critical Parts Destroyed 11 | . . . . . 1 2 . . . . . 8 Critical Strikes 33 | . 1 1 . . 4 13 . . 2 1 . 11 Burn 2 | . 1 . . . 1 . . . . . . . Meltdown 2 | . . . . . . 2 . . . . . . Destroy 13 | . . 1 . . 1 . . . . . . 11 Blast 11 | . . . . . 2 6 . . 2 1 . . Smash 5 | . . . . . . 5 . . . . . . Melee Attacks 46 | . . . . . . 46 . . . . . . Impact 46 | . . . . . . 46 . . . . . . Slashing . | . . . . . . . . . . . . . Piercing . | . . . . . . . . . . . . . Sneak Attacks 10 | . . . . . . 10 . . . . . . Combat Hostiles . | . . . . . . . . . . . . . Follow-up Attacks . | . . . . . . . . . . . . . Damage Inflicted 28986 | 3 530 1323 . 365 3108 8047 . 2425 2308 5796 . 5081 Guns 13016 | . 395 254 . 26 1255 411 . 842 . 4987 . 4846 Cannons 7557 | . . 227 . 106 368 3514 . 711 2006 577 . 48 Explosions 6725 | . 133 818 . 233 1478 2577 . 872 288 232 . 94 Melee 1481 | . . . . . . 1481 . . . . . . Ramming 207 | 3 2 24 . . 7 64 . . 14 . . 93 Kinetic 15010 | . 194 481 . 132 1126 2254 . 1304 552 5421 . 3546 Thermal 6019 | . 201 . . . 507 1741 . 249 1504 375 . 1442 Explosive 5885 | . 133 818 . 233 1394 2435 . 872 . . . . Electromagnetic 384 | . . . . . 74 72 . . 238 . . . Impact 1481 | . . . . . . 1481 . . . . . . Slashing . | . . . . . . . . . . . . . Piercing . | . . . . . . . . . . . . . Highest Corruption 25 | . . . . . . 10 . . 1 12 12 25 Average Corruption 10 | . . . . . . 7 . . 1 9 12 19 Corruption Purged . | . . . . . . . . . . . . . Corruption Blocked . | . . . . . . . . . . . . . Effects 335 | . . . . . . 133 . . 10 45 21 126 Message Errors 76 | . . . . . . 32 . . 3 8 5 28 Matter Fused 81 | . . . . . . 32 . . . 14 4 31 Heat Flow Errors 35 | . . . . . . 17 . . 1 5 1 11 Energy Discharges 34 | . . . . . . 14 . . 3 2 4 11 Parts Rejected 8 | . . . . . . 5 . . 1 1 . 1 Parts Fused 1 | . . . . . . . . . . . 1 . Data Loss (minor) 36 | . . . . . . 14 . . 1 6 3 12 Data Loss (major) 15 | . . . . . . 5 . . 1 1 2 6 Misfires 18 | . . . . . . 8 . . . 3 1 6 Alerts 5 | . . . . . . 2 . . . 1 . 2 Misdirections 1 | . . . . . . . . . . 1 . . Weapon Failures 25 | . . . . . . 4 . . . 3 . 18 Overload Shots . | . . . . . . . . . . . . . Overflow Damage 1081 | . 3 56 . . 65 711 . 56 77 54 . 59 Projectiles 114 | . . . . . . 33 . . 74 7 . . Explosions 352 | . 3 56 . . 65 63 . 56 3 47 . 59 Melee 615 | . . . . . . 615 . . . . . . Knockbacks 42 | . . 2 . 1 5 22 . . 4 6 . 2 Impact 9 | . . 1 . . . 6 . . . . . 2 Kinetic 32 | . . 1 . 1 5 15 . . 4 6 . . Secondary 1 | . . . . . . 1 . . . . . . Self-Inflicted Damage 642 | . . 31 . 37 59 225 . . . 185 . 105 Shots 15 | . . 1 . 1 3 6 . . . 2 . 2 Rammed 27 | 1 2 4 . . . 10 . . 1 2 . 7 Targets Rammed 30 | 1 2 4 . . 3 10 . . 1 2 . 7 Kicked 3 | . . . . . 3 . . . . . . . Crushed . | . . . . . . . . . . . . . Highest Temperature 498 | . 129 102 . 21 143 422 . 342 498 278 94 289 Average Temperature 89 | . 39 23 . 5 38 114 . 147 172 74 59 79 Received Heat Transfer 3025 | . 123 90 . 39 803 1032 . . 419 149 . 370 Effects 17 | . . . . . . 3 . 4 4 3 . 3 Shutdowns 2 | . . . . . . 1 . . 1 . . . Energy Bleed 3 | . . . . . . 1 . . 1 . . 1 Interference 10 | . . . . . . . . 3 2 3 . 2 Matter Decay 1 | . . . . . . . . 1 . . . . Short Circuit 1 | . . . . . . 1 . . . . . . Siege Activations 2 | . . . . . . . . . . . . 2 Total Turns 35 | . . . . . . . . . . . . 35 Longest Duration 30 | . . . . . . . . . . . . 30 Robots Corrupted . | . . . . . . . . . . . . . Combat Hostiles . | . . . . . . . . . . . . . Parts Fried 14 | . . . . . . 13 . . 1 . . . Impact Corruptions 21 | . . . . . . 21 . . . . . . Robots Melted 2 | . . . . . . 2 . . . . . . Combat Hostiles 2 | . . . . . . 2 . . . . . . Parts Melted 23 | . 1 . . . 1 3 . . 1 . . 17 Heat Transferred 10944 | . 666 . . . 840 2811 . 500 2064 350 . 3713 Parts Sabotaged . | . . . . . . . . . . . . . Parts Stolen . | . . . . . . . . . . . . . Parts Stripped . | . . . . . . . . . . . . . Power Chain Reactions 3 | . . . . . 1 1 . . 1 . . . Missiles Intercepted . | . . . . . . . . . . . . . Alert | -11 -10 -10 -10 -9 -8 -7 -6 -6 -6 -5 -5 -5 ------- Run | Jun Mat Min Exi Min Mat Fac Fac Was Fac Fac Was Fac Peak Influence 1479 | . 133 167 . 147 351 1479 724 261 910 1020 357 690 Initial 724 | . . 5 . . 57 123 724 253 40 441 357 109 Average 297 | . 37 61 . 123 173 380 724 152 380 558 309 372 Maximum Alert Level 4 | . . . . . 1 4 3 1 3 3 1 2 Low Security (%) 51 | 100 100 100 . 100 55 50 . 48 44 . 23 22 Level 1 21 | . . . . . 44 14 . 51 14 12 76 43 Level 2 16 | . . . . . . 16 . . 11 74 . 34 Level 3 7 | . . . . . . 8 100 . 28 12 . . Level 4 2 | . . . . . . 8 . . . . . . Level 5 . | . . . . . . . . . . . . . High Security . | . . . . . . . . . . . . . Max Security . | . . . . . . . . . . . . . Squads Dispatched 57 | . . . . . 4 20 . . 13 9 . 11 Investigation 6 | . . . . . . 2 . . 3 . . 1 Extermination 21 | . . . . . . 9 . . 3 4 . 5 Reinforcement 18 | . . . . . 4 6 . . 4 1 . 3 Assault 6 | . . . . . . 2 . . . 3 . 1 Garrison 6 | . . . . . . 1 . . 3 1 . 1 Intercept . | . . . . . . . . . . . . . Searches Triggered . | . . . . . . . . . . . . . Construction Impeded 5 | . . . . . 1 1 . . 2 1 . . Haulers Reinforced 2 | . . . . . . 2 . . . . . . Active Scanning Responses . | . . . . . . . . . . . . . Cargo Convoy Interrupts 1 | . . . . . . 1 . . . . . . Stealth | -11 -10 -10 -10 -9 -8 -7 -6 -6 -6 -5 -5 -5 --------- Run | Jun Mat Min Exi Min Mat Fac Fac Was Fac Fac Was Fac Distress Signals 11 | . 1 . . . 2 2 . . 3 . . 3 Communications Jammed 4 | . . . . . . . . . . . . 4 Distress Signals 4 | . . . . . . . . . . . . 4 Times Spotted 298 | . 15 18 . 5 27 68 . 8 38 39 . 80 Peak Tracking Total 9 | . 3 3 . 3 5 6 . 3 7 6 . 9 Tactical Retreats 9 | . . . . . 1 2 . 1 . 2 . 3 Traps | -11 -10 -10 -10 -9 -8 -7 -6 -6 -6 -5 -5 -5 ------- Run | Jun Mat Min Exi Min Mat Fac Fac Was Fac Fac Was Fac Traps Triggered 6 | . . . . . . 2 1 . . 1 . 2 Indirectly . | . . . . . . . . . . . . . Trap Hack Attempts . | . . . . . . . . . . . . . Triggered . | . . . . . . . . . . . . . Disarmed . | . . . . . . . . . . . . . Reprogrammed . | . . . . . . . . . . . . . Reused . | . . . . . . . . . . . . . Traps Extracted . | . . . . . . . . . . . . . Installed . | . . . . . . . . . . . . . Triggered 2 | . . . . . . 2 . . . . . . Machines | -11 -10 -10 -10 -9 -8 -7 -6 -6 -6 -5 -5 -5 ---------- Run | Jun Mat Min Exi Min Mat Fac Fac Was Fac Fac Was Fac Machines Disabled 38 | . . 2 . . 2 19 . . 5 8 . 2 Max in Single Turn 5 | . . 1 . . 1 5 . . 2 5 . 2 Garrison Access 1 | . . . . . . 1 . . . . . . Machines Repaired . | . . . . . . . . . . . . . Machines Sabotaged . | . . . . . . . . . . . . . Overloaded Fab Kills . | . . . . . . . . . . . . . Hacking | -11 -10 -10 -10 -9 -8 -7 -6 -6 -6 -5 -5 -5 --------- Run | Jun Mat Min Exi Min Mat Fac Fac Was Fac Fac Was Fac Machines Accessed 25 | . 3 . 1 . 4 6 1 . 7 1 . 2 Terminals 17 | . 3 . . . 4 2 1 . 5 1 . 1 Fabricators 2 | . . . . . . 1 . . 1 . . . Repair Stations 2 | . . . . . . 1 . . . . . 1 Recycling Units . | . . . . . . . . . . . . . Scanalyzers 1 | . . . . . . 1 . . . . . . Garrison Access 2 | . . . . . . 1 . . 1 . . . Total Hacks 61 | . 7 . 1 . 9 17 2 . 17 1 . 7 Successful 34 | . 3 . 1 . 2 12 2 . 8 1 . 5 Failed 26 | . 3 . . . 7 5 . . 9 . . 2 Catastrophic 3 | . . . . . 2 1 . . . . . . Database Lockouts 1 | . 1 . . . . . . . . . . . Manual 30 | . 8 . 1 . 9 3 2 . 6 . . 1 Terminals 36 | . 7 . . . 9 3 2 . 12 1 . 2 Fabricators 5 | . . . . . . 3 . . 2 . . . Repair Stations 10 | . . . . . . 5 . . . . . 5 Recycling Units . | . . . . . . . . . . . . . Scanalyzers 4 | . . . . . . 4 . . . . . . Garrison Access 5 | . . . . . . 2 . . 3 . . . Terminal Hacks 13 | . 1 . 1 . 2 2 1 . 4 1 . 1 Part Schematic 1 | . . . . . . . . . 1 . . . Robot Analysis 2 | . 1 . . . 1 . . . . . . . Branch Access Points 1 | . . . . . 1 . . . . . . . Terminal Index 2 | . . . . . . . 1 . . 1 . . Alert Level 1 | . . . . . . 1 . . . . . . Unreport Threat 2 | . . . . . . 1 . . 1 . . . Recall Investigation 1 | . . . . . . . . . 1 . . . Recall Extermination 2 | . . . . . . . . . 1 . . 1 EX-Prototype ID Bank 1 | . . . 1 . . . . . . . . . Fabricator Hacks 5 | . . . . . . 3 . . 2 . . . Network Status 1 | . . . . . . 1 . . . . . . Load Schematic 2 | . . . . . . 1 . . 1 . . . Build 2 | . . . . . . 1 . . 1 . . . Repair Station Hacks 7 | . . . . . . 4 . . . . . 3 Scan Component 4 | . . . . . . 2 . . . . . 2 Repair 3 | . . . . . . 2 . . . . . 1 Recycling Unit Hacks . | . . . . . . . . . . . . . Scanalyzer 2 | . . . . . . 2 . . . . . . Insert Component 1 | . . . . . . 1 . . . . . . Analyze 1 | . . . . . . 1 . . . . . . Garrison Access Hacks . | . . . . . . . . . . . . . Unauthorized Hacks 7 | . 2 . . . . 1 1 . 2 . . 1 Terminals 6 | . 2 . . . . . 1 . 2 . . 1 Assimilate 1 | . 1 . . . . . . . . . . . Botnet 4 | . . . . . . . 1 . 2 . . 1 Operators 1 | . 1 . . . . . . . . . . . Fabricators . | . . . . . . . . . . . . . Repair Stations . | . . . . . . . . . . . . . Recycling Units . | . . . . . . . . . . . . . Scanalyzers . | . . . . . . . . . . . . . Garrison Access 1 | . . . . . . 1 . . . . . . Jam 1 | . . . . . . 1 . . . . . . Data Cores Recovered 1 | . . . . . . 1 . . . . . . Used . | . . . . . . . . . . . . . Hacking Detections 20 | . 2 . . . 3 5 1 . 6 1 . 2 Full Trace Events 6 | . . . . . 1 1 . . 3 . . 1 Feedback Events . | . . . . . . . . . . . . . Feedback Blocked . | . . . . . . . . . . . . . Robot Schematics Acquired . | . . . . . . . . . . . . . Robots Built . | . . . . . . . . . . . . . Authchips . | . . . . . . . . . . . . . Time . | . . . . . . . . . . . . . Total Robot Build Rating . | . . . . . . . . . . . . . Part Schematics Acquired 2 | . . . . . . 1 . . 1 . . . Parts Built 3 | . . . . . . 2 . . 1 . . . Authchips . | . . . . . . . . . . . . . Time 109 | . . . . . . 84 . . 25 . . . Total Part Build Rating 9 | . . . . . . 8 . . 1 . . . Parts Repaired 3 | . . . . . . 2 . . . . . 1 Time 124 | . . . . . . 77 . . . . . 47 Parts Recycled . | . . . . . . . . . . . . . Recycled Matter . | . . . . . . . . . . . . . Retrieved Matter . | . . . . . . . . . . . . . Retrieved Components . | . . . . . . . . . . . . . Parts Scanalyzed 1 | . . . . . . 1 . . . . . . Part Schematics Acquired 1 | . . . . . . 1 . . . . . . Parts Damaged . | . . . . . . . . . . . . . Bothacking | -11 -10 -10 -10 -9 -8 -7 -6 -6 -6 -5 -5 -5 ------------ Run | Jun Mat Min Exi Min Mat Fac Fac Was Fac Fac Was Fac Used RIF Installer . | . . . . . . . . . . . . . Robots Hacked . | . . . . . . . . . . . . . Non-combat . | . . . . . . . . . . . . . Combat . | . . . . . . . . . . . . . Robot Hacks Applied . | . . . . . . . . . . . . . Relay Couplers Released . | . . . . . . . . . . . . . Fabnet Peak Effective % . | . . . . . . . . . . . . . Robots Rewired . | . . . . . . . . . . . . . Allies Hacked 2 | . . . . . . 2 . . . . . . Hacks Repelled . | . . . . . . . . . . . . . Allies | -11 -10 -10 -10 -9 -8 -7 -6 -6 -6 -5 -5 -5 -------- Run | Jun Mat Min Exi Min Mat Fac Fac Was Fac Fac Was Fac Total Allies 25 | . 1 1 . . . 3 . 20 . . . . Largest Group 19 | . 1 2 1 . . 3 . 19 15 . . . Highest-Rated Group 684 | . 10 41 10 . . 93 . 684 535 . . . Highest-Rated Ally 50 | . 10 31 10 . . 31 . 50 50 . . . Total Orders . | . . . . . . . . . . . . . Ally Attacks 202 | . . . . . . 9 . 55 138 . . . Total Damage 6251 | . . . . . . 168 . 1631 4452 . . . Kills 40 | . . . . . . . . 4 36 . . . Allies Corrupted . | . . . . . . . . . . . . . Allies Melted . | . . . . . . . . . . . . . Intel | -11 -10 -10 -10 -9 -8 -7 -6 -6 -6 -5 -5 -5 ------- Run | Jun Mat Min Exi Min Mat Fac Fac Was Fac Fac Was Fac Robot Analysis Total 2 | . 1 . . . 1 . . . . . . . Derelict Logs Recovered 1 | . . 1 . . . . . . . . . . Drone Launches . | . . . . . . . . . . . . . Drone Recoveries . | . . . . . . . . . . . . . Exploration | -11 -10 -10 -10 -9 -8 -7 -6 -6 -6 -5 -5 -5 ------------- Run | Jun Mat Min Exi Min Mat Fac Fac Was Fac Fac Was Fac Turns Passed 18359 | 58 1423 1874 779 220 1740 5039 125 770 1962 1432 523 2414 Spaces Moved 7559 | 32 551 718 325 117 719 2138 51 496 727 471 269 945 Core 173 | 4 . . . . . 3 . 157 . 9 . . Treads 4220 | 28 551 718 325 25 . 795 51 284 727 123 . 593 Legs 1641 | . . . . . 573 108 . . . 339 269 352 Wheels 1470 | . . . . 92 146 1232 . . . . . . Hover 55 | . . . . . . . . 55 . . . . Flight . | . . . . . . . . . . . . . Fastest Speed 50 | 50 160 240 240 105 105 130 240 50 160 190 190 170 Average Speed 204 | 146 238 240 240 155 199 188 240 127 230 239 190 197 Slowest Speed 1700 | 160 240 240 240 320 470 1050 240 400 240 1700 190 270 Overloaded Moves . | . . . . . . . . . . . . . Propulsion Burnouts . | . . . . . . . . . . . . . Robots Hopped . | . . . . . . . . . . . . . Cave-ins Triggered . | . . . . . . . . . . . . . Exploration Rate (%) 48 | 4 93 95 71 34 51 42 2 95 21 11 92 23 Regions Visited 12 Branch Regions 3 Pre-discovered Areas . | . . . . . . . . . . . . . Known Exits Taken . | . . . . . . . . . . . . . Unknown Exits Taken 8 | 1 1 1 1 1 1 1 . . 1 . . . Scrap Searched 1 | . . 1 . . . . . . . . . . Spaces Dug 17 | . . 7 . . . 10 . . . . . . Terrain Destroyed 613 | . 6 50 . 12 90 265 . 44 12 81 . 53 Melee 10 | . . . . . . 10 . . . . . . Projectile 82 | . . . . . 2 27 . 2 10 41 . . AOE 520 | . 6 50 . 12 88 228 . 42 2 40 . 52 Terrain Rammed . | . . . . . . . . . . . . . Walls Destroyed . | . . . . . . . . . . . . . Machines Disabled . | . . . . . . . . . . . . . Actions | -11 -10 -10 -10 -9 -8 -7 -6 -6 -6 -5 -5 -5 --------- Run | Jun Mat Min Exi Min Mat Fac Fac Was Fac Fac Was Fac Total 9524 | 40 598 797 325 139 880 2858 56 602 943 695 281 1310 Wait 1001 | . 8 28 . . 49 442 . 67 161 56 2 188 Move 7550 | 32 550 717 324 116 718 2137 51 495 726 471 268 945 Hop . | . . . . . . . . . . . . . Pick Up 87 | 2 4 6 1 1 13 29 1 1 8 8 6 7 Fast Attach 83 | 6 2 . . 2 9 27 . 5 7 13 . 12 Attach 39 | . . 2 . . 4 13 2 1 4 4 1 8 Detach 17 | . 1 . . 1 2 4 . 1 4 2 . 2 Swap 52 | . 3 8 . 3 5 14 1 3 . 9 1 5 Drop 53 | . . . . 7 2 33 1 2 2 4 . 2 Fire 554 | . 28 32 . 9 75 93 . 27 30 126 . 134 Melee 46 | . . . . . . 46 . . . . . . Ram 2 | . . . . . . 1 . . . 1 . . Kick 3 | . . . . . 3 . . . . . . . Crush 24 | . 2 4 . . . 9 . . 1 1 . 7 Escape Stasis 10 | . . . . . . 10 . . . . . . Rewire 3 | . . . . . . . . . . . 3 . Trap . | . . . . . . . . . . . . . Miscellaneous . | . . . . . . . . . . . . . Route ------- -11/Junkyard -10/Materials (discovered 4 exits: [*Mat x2] / [*Min x2]) -10/Mines (discovered 3 exits: [*Mat x2] / *Exi) -10/Exiles -9/Mines (discovered 2 exits: *Mat x2) -8/Materials (discovered 2 exits: *Fac x2) -7/Factory -6/Factory -6/Waste -6/Factory -5/Factory -5/Waste -5/Factory (discovered 1 exit: [*Fac]) History --------- Turn | Location | Event 5 | -11/Junkyard | Discovered new exit (range 15) 59 | -11/Junkyard | Entered Materials 61 | -10/Materials | Discovered new exit (range 16) 300 | -10/Materials | Build established: Mutant 507 | -10/Materials | Discovered new exit (range 16) 812 | -10/Materials | Discovered new exit (range 5) 831 | -10/Materials | Central database locked down 1265 | -10/Materials | Discovered new exit (range 13) 1482 | -10/Materials | Entered Mines 1482 | -10/Mines | Accompanied by 1 ally 1572 | -10/Mines | Discovered new exit (range 6) 2410 | -10/Mines | Learned Materials stockpile data 2802 | -10/Mines | Discovered new exit (range 13) 2819 | -10/Mines | Received a Mining Laser from a helpful Derelict 3109 | -10/Mines | Excavation squad dispatched 3109 | -10/Mines | A large section of the Mines collapsed 3342 | -10/Mines | Deemed a non-threat by the Exiles lab entrance 3344 | -10/Mines | Discovered new exit (range 5) 3356 | -10/Mines | Entered Exiles 3356 | -10/Exiles | Accompanied by 1 ally 3412 | -10/Exiles | Met 8R-AWN 3455 | -10/Exiles | Met EX-HEX 3524 | -10/Exiles | Met EX-BIN 3553 | -10/Exiles | Aligned with FarCom system 3556 | -10/Exiles | Given EX-Vault access code 3618 | -10/Exiles | Opened EX-Vault 3632 | -10/Exiles | Found XL Autogun Array 3686 | -10/Exiles | Warned to stay clear of 0b10 Research branches 3761 | -10/Exiles | Met EX-DEC 4109 | -10/Exiles | Discovered new exit (range 14) 4135 | -10/Exiles | Left Exiles lab with XL Autogun Array 4135 | -10/Exiles | Entered Mines 4135 | -9/Mines | Accompanied by 1 ally 4331 | -9/Mines | Discovered new exit (range 5) 4351 | -9/Mines | Discovered new exit (range 4) 4355 | -9/Mines | Entered Materials 4355 | -8/Materials | Evolved 4 slots: Propulsion x1, Utility x3 4616 | -8/Materials | Lost 3 parts (1p1n1u) 4973 | -8/Materials | Build established: Scavenger-Mutant 5282 | -8/Materials | Discovered new exit (range 12) 5575 | -8/Materials | Discovered new exit (range 16) 6058 | -8/Materials | Build established: Mutant 6095 | -8/Materials | Entered Factory 6095 | -7/Factory | Evolved 2 slots: Weapon x2 6209 | -7/Factory | Repaired Grenade Launcher 6262 | -7/Factory | Repaired Imp. EM Shotgun 6401 | -7/Factory | Build established: Tank 6761 | -7/Factory | Build established: Mutant 7115 | -7/Factory | Cargo convoy interrupted 7685 | -7/Factory | Build established: Tank 7813 | -7/Factory | Lost 6 parts (1p3n2u) 8171 | -7/Factory | Discovered new exit (range 7) 8364 | -7/Factory | Build established: Gunner 9330 | -7/Factory | Garrison activated, responded to threat 9432 | -7/Factory | Build established: Skirmisher 10021 | -7/Factory | System corruption reached 10% 10317 | -7/Factory | Fabricated Med. Treads? 10495 | -7/Factory | First assault squad dispatched 10673 | -7/Factory | Core integrity fell below 50% 11134 | -7/Factory | Entered another Factory area 11134 | -6/Factory | Evolved 2 slots: Utility x2 11259 | -6/Factory | Sucked down chute 11259 | -6/Factory | Entered Waste 11260 | -6/Waste | Met a frightened Derelict 11335 | -6/Waste | Spotted C-40 Crusher 11363 | -6/Waste | Destroyed C-40 Crusher 11370 | -6/Waste | Spotted C-40 Crusher 11377 | -6/Waste | Destroyed C-40 Crusher 11383 | -6/Waste | Spotted C-40 Crusher 11401 | -6/Waste | Spotted C-40 Crusher 11403 | -6/Waste | Destroyed C-40 Crusher 11411 | -6/Waste | Crushed by Compactor (1 part destroyed, 1 dropped) 11414 | -6/Waste | Crushed by Compactor (1 part destroyed, 2 dropped) 11420 | -6/Waste | Crushed by Compactor (1 part destroyed, 1 dropped) 11421 | -6/Waste | Spotted C-40 Crusher 11428 | -6/Waste | Crushed by Compactor (1 part destroyed, 2 dropped) 11459 | -6/Waste | Lost 5 parts (1p2n2w) 11465 | -6/Waste | Discovered new exit (range 16) 11484 | -6/Waste | Warlord forces began an assault 11583 | -6/Waste | Allies destroyed C-40 Crusher 11593 | -6/Waste | Allies destroyed C-40 Crusher 11627 | -6/Waste | Allies destroyed C-40 Crusher 11713 | -6/Waste | Build established: Hacker-Mutant 12029 | -6/Waste | Entered Factory 12029 | -6/Factory | Accompanied by 15 allies 12153 | -6/Factory | Build established: Hacker-Tank 12200 | -6/Factory | Fabricated Huge Storage Unit (x1) 12509 | -6/Factory | Build established: Hacker-Skirmisher 13189 | -6/Factory | Garrison activated, responded to threat 13469 | -6/Factory | Destroyed 7 combat bots 13866 | -6/Factory | Lost 3 parts (1p2u) 13962 | -6/Factory | Discovered new exit (range 13) 13991 | -6/Factory | Entered another Factory area 13991 | -5/Factory | Evolved 2 slots: Power x1, Propulsion x1 14354 | -5/Factory | System corruption reached 10% 14387 | -5/Factory | Lost 6 parts (1p2n3w) 14591 | -5/Factory | First assault squad dispatched 14998 | -5/Factory | Build established: Scavenger-Skirmisher 15282 | -5/Factory | Garrison activated, responded to threat 15423 | -5/Factory | Sucked down chute 15423 | -5/Factory | Entered Waste 15423 | -5/Waste | The area was eerily silent 15743 | -5/Waste | Discovered new exit (range 15) 15946 | -5/Waste | Entered Factory 16130 | -5/Factory | Destroyed 14 combat bots 16771 | -5/Factory | Repaired Broken Imp. Heavy Siege Treads 17185 | -5/Factory | Build established: Scavenger-Tank 17824 | -5/Factory | Lost 4 parts (2p1n1u) 17840 | -5/Factory | Discovered new exit (range 8) 18272 | -5/Factory | Build established: Scavenger-Skirmisher 18346 | -5/Factory | First assault squad dispatched 18350 | -5/Factory | Core integrity fell below 50% 18357 | -5/Factory | Garrison activated, responded to threat 18360 | -5/Factory | Self-destructed Last Messages --------------- 18328_ System corrupted: Matter fused (-8). 18344_ System corrupted: Component data lost. 18346_ ALERT: Significant disruption in Zone 1B, assault force dispatched. 18346_ Phase Shifter destroyed. 18346_ Imp. Weapon Shielding destroyed. 18352_ P-70 Sage destroyed. 18352_ Fusion Modulator explodes. 18352_ Lgt. Fission Core destroyed. 18352_ XL Autogun Subcomponent destroyed. 18353_ C-30 ARC bursts open, deploying its payload. 18353_ G-67 Veteran unfolds itself. 18353_ G-50 Soldier unfolds itself. 18353_ L-41 Fighter unfolds itself. 18353_ M-28 Smith unfolds itself. 18356_ Activated siege mode. 18357_ P-70 Sage calls for garrison reinforcements. 18357_ ALERT: Activating Garrison Access F004. 18358_ B-60 Warrior emerges from the garrison. 18358_ L-41 Fighter emerges from the garrison. 18358_ XL Autogun Subcomponent destroyed. Map ----- +----------------------------------------------------+ | ?????????????????????????????????????????????????? | | ?????????????????????????????????????????????????? | | ?????????????????????????????????????????????????? | | ?????????????????????????????????????????????????? | | ?????????????????????????????????????????????????? | | ?????????????????????????????????????????????????? | | ?????????????????????????????????????????????????? | | ?????????????????????????????????????????????????? | | ?????????????????????????????????????????????????? | | ?????????????????????????????????????????????????? | | ?????????????????????????????????????????????????? | | ?????????????????????????????????????????????????? | | ?????????????????????????????????????????????????? | | ?????????????????????????????????????????????????? | | ?????????????????????????????????????????????????? | | ?????????????????????????????????????????????????? | | ?????????????????????????????????????????????????? | | ???????????????????????#####?????????????????????? | | ????????????????????#### ####??????????????????? | | ????????????????????#;;;;;;;# #??????????????????? | | ???????????????????## ; #?#????????????????? | | ???????????????????#; ; # #????????????????? | | ???????????????????#; ; #?????????????????? | | ???????????????????#; ; #???####+###???????? | | ???????????????????#; ; #??? !##+#????? | | ???????????????????#; g@ ; #?? % ???? | | ???????????????????##;;mpl;;;#### ???? | | ????????????????????# ;[g| ???? | | ????????????????????###%g ^ #???????? | | ??????????????????????# "" ##???????? | | ??????????????????????# "" ###### #????????? | | ??????????????????????# Y" #] ??# ##???????? | | ??????????????????????# "" # ??# T#???????? | | ??????????????????????# ^ "" + ???# ????????? | | ???????????????????####bl #????# ########## | | ???????????????????# "" #????# ## | | ???????????????????#"G #????# ## | | ???????????????????# "" """ #????# ## | | ???????????????????#### """ ###?## ## | | ?????????????????###### """ #?# # | | ?????????? ### # | | ?????????? + | | ?????????? ### # | | ??????????##########+####### #?# ###+##### | | ??????????????????? ???????#######?### ###?# # | | ?????????????????????###############?# #???# # | | ?????????????????????# ### ###?# # "" | | ?????????????????????# # #?# # "" | | ?????????????????????# # ### # "" | | ?????????????????????# """ """ + + | +----------------------------------------------------+ Best States ------------- Heat Dissipation 78 Coolant Potential 65 Energy Generation 37 Energy Capacity 395 Matter Stores 300 Matter Capacity 500 Sight Range 16 Terrain Scan Density 10 Jamming Range 12 Armor Coverage 1200 Weapon Shielding 66 Weapon Cycling 15 Phase Shifting 5 Evasion (%) 50 Core Analysis 6 Recoil Reduction 4 Kinecelleration 30 Offensive Hacking 30 Defensive Hacking 10 Item Schematics ----------------- Med. Treads | -7/Factory | Scanalyzed Huge Storage Unit | -6/Factory | Hacked Robot Schematics ------------------ None Fabricated ------------ Med. Treads | x2 | -7/Factory Huge Storage Unit | x1 | -6/Factory Alien Tech Used ----------------- None Achievements -------------- None Challenges ------------ None Game ------ Seed MinesnifferDecoyTendrils Manual? 0 Play Time 01:20:14 Cumulative 69.8 hours Start 2023.12.16 @ 16:06:16 End 2023.12.16 @ 20:27:12 Sessions 3 Manual Loads 0 Difficulty Rogue Special Mode None Game No. 96 Rogue 96 Adventurer 0 Explorer 0 Win Type - Total 1 Types 1/0/0/0/0/0/0/0/0 Lore% 37 Gallery% 48 Achievement% 42 Wizard Run 0 Options --------- ASCII 0 Keyboard 1 Movement Numpad Keybinds 0 Fullscreen 2 Font 18/SmallcapsGlow Map View 76x50 Tactical HUD 1 Map Filters NONE Filters NONE Steam 1 RUN: 9c5c90d0-e77a-4bcb-8775-88776b18d508